bitfinex-derivatives/quotes_BNBF0:USTF0_20250510
["timestamp","ask_amount","ask_price","bid_price","bid_amount"]
[1746850257291,0.30325084,659.52,658.43,1.462]
[1746850257491,0.5501106,659.52,658.43,1.462]
[1746850257893,0.24685976,659.51,658.43,1.462]
[1746850258195,0.24685976,659.5,658.43,1.462]
[1746850258594,0.24685976,659.49,658.43,1.462]
[1746850258994,0.24685976,659.48,658.43,1.462]
[1746850259389,0.24685976,659.47,658.43,1.462]
[1746850259994,0.55013819,659.46,658.43,1.462]
[1746850260192,0.30328303,659.45,658.43,1.462]
[1746850260695,0.26423088,659.44,658.43,1.462]
[1746850260891,0.30329223,659.43,658.43,1.462]
[1746850261197,0.55015199,659.43,658.43,1.462]
[1746850261796,0.24685976,659.42,658.43,1.462]
[1746850261999,0.30330143,659.41,658.43,1.462]
[1746850262199,0.55016119,659.41,658.43,1.462]
[1746850262596,0.51109566,659.4,658.43,1.462]
[1746850262993,0.24685976,659.39,658.43,1.462]
[1746850263293,0.24685976,659.38,658.43,1.462]
[1746850263598,0.24685976,659.37,658.43,1.462]
[1746850264299,0.24685976,659.36,658.43,1.462]
[1746850264496,0.2642359,659.4,658.43,1.462]
[1746850264998,0.24667261,659.39,658.43,1.462]
[1746850265297,0.24667261,659.38,658.43,1.462]
[1746850265693,0.24667261,659.37,658.43,1.462]
[1746850265893,0.51091052,659.37,658.43,1.462]
[1746850266193,0.24667261,659.36,658.43,1.462]
[1746850266597,0.24667261,659.35,658.43,1.462]
[1746850266798,0.24667261,659.34,658.43,1.462]
[1746850267193,0.24667261,659.33,658.43,1.462]
[1746850267597,0.24667261,659.32,658.43,1.462]
[1746850268196,0.24667261,659.31,658.43,1.462]
[1746850268799,0.24667261,659.36,658.43,1.462]
[1746850269399,0.24667261,659.35,658.43,1.462]
[1746850269694,0.24667261,659.34,658.43,1.462]
[1746850269899,0.24667261,659.33,658.43,1.462]
[1746850270199,0.24667261,659.32,658.43,1.462]
[1746850270699,0.24667261,659.31,658.43,1.462]
[1746850270999,0.24667261,659.3,658.43,1.462]
[1746850271699,0.26434529,659.29,658.43,1.462]
[1746850271901,0.5110179,659.29,658.43,1.462]
[1746850272093,0.24667261,659.28,658.43,1.462]
[1746850272699,0.24667261,659.27,658.43,1.462]
[1746850273198,0.24667261,659.26,658.43,1.462]
[1746850273397,0.24667261,659.25,658.43,1.462]
[1746850273799,0.24667261,659.24,658.43,1.462]
[1746850274102,0.24667261,659.23,658.43,1.462]
[1746850274699,0.24667261,659.22,658.43,1.462]
[1746850274900,0.24667261,659.21,658.43,1.462]
[1746850275299,0.24667261,659.2,658.43,1.462]
[1746850275698,0.24667261,659.19,658.43,1.19761957]
[1746850276002,0.24667261,659.18,658.43,1.19761957]
[1746850276503,0.24667261,659.17,658.43,1.19761957]
[1746850276801,0.24667261,659.16,658.43,1.19761957]
[1746850277202,0.24667261,659.15,658.43,1.19761957]
[1746850277698,0.24667261,659.14,658.43,1.19761957]
[1746850278206,0.24667261,659.13,658.43,1.19761957]
[1746850278710,0.24667261,659.12,658.43,0.93319193]
[1746850279008,0.24667261,659.11,658.43,0.93319193]
[1746850279307,0.24667261,659.1,658.43,0.93319193]
[1746850279705,0.24667261,659.09,658.43,0.93319193]
[1746850280010,0.30330143,659.41,658.43,0.93319193]
[1746850280011,0.24667261,659.08,658.43,0.93319193]
[1746850280510,0.24667261,659.07,658.43,0.93319193]
[1746850280811,0.24667261,659.06,658.43,0.769]
[1746850281310,0.24667261,659.05,658.43,0.769]
[1746850281713,0.51104401,659.04,658.43,0.769]
[1746850282213,0.24667261,659.03,658.43,0.769]
[1746850282512,0.24667261,659.02,658.43,0.769]
[1746850282912,0.24667261,659.01,658.43,0.769]
[1746850283212,0.24667261,659.0,658.43,0.769]
[1746850283714,0.30330143,659.41,658.43,0.769]
[1746850283914,1.93745811,659.8,658.43,0.769]
[1746850284117,0.24696329,659.79,658.43,0.769]
[1746850284813,0.26404644,659.78,658.43,0.769]
[1746850285012,0.24696329,659.77,658.43,0.769]
[1746850286715,0.24696329,659.77,658.44,0.30374825]
[1746850287215,0.24696329,659.87,658.44,0.30374825]
[1746850287817,0.26404343,659.86,658.44,0.30374825]
[1746850288114,0.24696329,659.85,658.44,0.30374825]
[1746850289814,0.26403942,659.84,658.44,0.30374825]
[1746850290320,0.24696329,659.83,658.44,0.30374825]
[1746850292617,0.26402841,659.82,658.44,0.30374825]
[1746850293221,0.24696329,659.81,658.44,0.30374825]
[1746850293821,0.24696329,659.81,658.45,0.702]
[1746850295823,0.26397433,659.8,658.45,0.702]
[1746850296230,0.30313134,659.78,658.45,0.702]
[1746850296721,0.24686229,659.77,658.45,0.702]
[1746850298229,0.24686229,659.76,658.45,0.702]
[1746850298628,0.30313134,659.78,658.45,0.702]
[1746850298629,0.24686229,659.77,658.45,0.702]
[1746850298929,0.24686229,659.76,658.45,0.702]
[1746850299330,0.24686229,659.77,658.45,0.702]
[1746850300030,0.24686229,659.76,658.45,0.702]
[1746850300331,0.24686229,659.77,658.45,0.702]
[1746850300835,0.24686229,659.76,658.45,0.702]
[1746850301132,0.24686229,659.77,658.45,0.702]
[1746850301333,0.24686229,659.77,658.46,0.30373902]
[1746850301730,0.26405846,659.76,658.46,0.30373902]
[1746850302433,0.24686229,659.75,658.46,0.30373902]
[1746850302634,0.30315432,659.73,658.45,0.702]
[1746850302829,0.30315432,659.73,658.45,0.43756834]
[1746850303030,0.30315432,659.73,658.21,0.78346304]
[1746850303228,0.24686229,659.72,658.21,0.78346304]
[1746850303534,0.24686229,659.72,658.21,0.05246304]
[1746850303729,0.30315432,659.73,658.21,0.05246304]
[1746850303730,0.24686229,659.71,658.21,0.05246304]
[1746850304134,0.24686229,659.7,658.21,0.05246304]
[1746850304335,0.30315432,659.73,658.21,0.05246304]
[1746850304838,0.24629254,659.72,658.21,0.05246304]
[1746850305031,0.3031681,659.7,658.21,0.05246304]
[1746850305835,0.24629254,659.69,658.21,0.05246304]
[1746850306039,0.30318189,659.67,658.18,0.09176493]
[1746850306434,0.24629254,659.66,658.18,0.09176493]
[1746850306839,0.30318189,659.67,658.18,0.09176493]
[1746850307144,0.24623682,659.66,658.18,0.09176493]
[1746850307344,0.30319568,659.64,658.18,0.09176493]
[1746850307837,0.24623682,659.63,658.18,0.09176493]
[1746850308044,0.30320947,659.61,658.18,0.09176493]
[1746850308242,0.24623682,659.6,658.18,0.09176493]
[1746850308543,0.30322326,659.58,658.18,0.09176493]
[1746850309042,0.30322326,659.58,658.15,0.13102233]
[1746850309243,0.24616648,659.57,658.15,0.13102233]
[1746850309445,0.30323705,659.55,658.15,0.13102233]
[1746850309641,0.30323705,659.55,658.05,0.09010889]
[1746850310236,0.24616648,659.54,658.05,0.09010889]
[1746850310439,0.30325084,659.52,658.05,0.09010889]
[1746850310744,0.24616648,659.51,658.05,0.09010889]
[1746850311045,0.30326464,659.49,658.05,0.09010889]
[1746850311543,0.24616648,659.48,658.05,0.09010889]
[1746850311744,0.30327843,659.46,658.05,0.09010889]
[1746850311946,0.24616648,659.45,658.05,0.09010889]
[1746850312147,0.30329223,659.43,658.05,0.09010889]
[1746850312448,0.30329223,659.43,656.84,0.698]
[1746850312449,1.93745811,659.15,656.84,0.698]
[1746850312643,0.30347171,659.04,656.84,0.698]
[1746850312948,0.24616648,659.03,656.84,0.698]
[1746850313248,0.30352237,658.93,656.84,0.698]
[1746850313750,0.51097039,658.92,656.84,0.698]
[1746850313950,0.30357305,658.82,656.84,0.698]
[1746850314451,0.24616648,658.81,656.84,0.698]
[1746850314651,0.30358687,658.79,656.84,0.698]
[1746850315150,0.24616648,658.78,656.84,0.698]
[1746850315347,0.3036007,658.76,656.84,0.698]
[1746850315945,0.24616648,658.75,656.84,0.698]
[1746850316151,0.30361453,658.73,656.84,0.698]
[1746850316749,0.51105303,658.72,656.84,0.698]
[1746850317250,0.24616648,658.71,656.84,0.698]
[1746850317652,0.24616648,658.7,656.84,0.698]
[1746850318050,0.24616648,658.69,656.84,0.698]
[1746850318252,0.24616648,658.68,656.84,0.698]
[1746850318553,0.24616648,658.67,656.84,0.698]
[1746850319750,0.24616648,658.66,656.84,0.698]
[1746850320151,0.24616648,658.65,656.84,0.698]
[1746850320452,0.24616648,658.64,656.84,0.698]
[1746850320847,0.24616648,658.63,656.84,0.698]
[1746850321253,0.24616648,658.62,656.84,0.698]
[1746850321554,0.26488655,658.72,656.84,0.698]
[1746850321555,0.24616648,658.61,656.84,0.698]
[1746850321855,0.24616648,658.6,656.84,0.698]
[1746850322358,0.24616648,658.59,656.84,0.698]
[1746850322857,0.24616648,658.58,656.84,0.698]
[1746850323359,0.24616648,658.57,656.84,0.698]
[1746850323657,0.24616648,658.56,656.84,0.698]
[1746850324058,0.24616648,658.55,656.84,0.698]
[1746850324356,0.24616648,658.54,656.84,0.698]
[1746850324756,0.24616648,658.53,656.84,0.698]
[1746850325157,0.24616648,658.52,656.84,0.698]
[1746850325557,0.24616648,658.51,656.84,0.698]
[1746850325852,0.24616648,658.5,656.84,0.698]
[1746850326252,0.24616648,658.49,656.84,0.698]
[1746850326653,0.24616648,658.48,656.84,0.698]
[1746850326957,0.511049,658.48,656.84,0.698]
[1746850327158,0.24616648,658.47,656.84,0.698]
[1746850327360,0.24616648,658.46,656.84,0.698]
[1746850327659,0.24616648,658.45,656.84,0.698]
[1746850327962,0.26488252,658.48,656.84,0.698]
[1746850328259,0.24624727,658.47,656.84,0.698]
[1746850328653,0.24624727,658.46,656.84,0.698]
[1746850329052,0.24624727,658.45,656.84,0.698]
[1746850329453,0.24624727,658.44,656.84,0.698]
[1746850329757,0.24624727,658.43,656.84,0.698]
[1746850330158,0.24624727,658.42,656.84,0.698]
[1746850330457,0.24624727,658.41,656.84,0.698]
[1746850330658,0.24624727,658.41,656.2,0.437]
[1746850330852,0.24624727,658.4,656.2,0.437]
[1746850331359,0.24624727,658.39,656.2,0.437]
[1746850331559,0.24624727,658.38,656.2,0.437]
[1746850331856,0.24624727,658.37,656.2,0.437]
[1746850332158,0.24624727,658.36,656.2,0.437]
[1746850332359,0.24624727,658.36,656.21,0.623]
[1746850332558,0.24624727,658.35,656.21,0.623]
[1746850332858,0.24624727,658.34,656.21,0.623]
[1746850333361,0.24624727,658.33,656.21,0.623]
[1746850333762,0.24624727,658.32,656.21,0.623]
[1746850334062,0.24624727,658.31,656.21,0.623]
[1746850334462,0.24624727,658.3,656.21,0.623]
[1746850334858,0.24624727,658.29,656.21,0.623]
[1746850335258,0.24624727,658.28,656.21,0.623]
[1746850335660,0.24624727,658.27,656.21,0.623]
[1746850335860,0.51117717,658.27,656.21,0.623]
[1746850336060,0.24624727,658.26,656.21,0.623]
[1746850336461,0.24624727,658.25,656.21,0.623]
[1746850337065,0.24624727,658.24,656.21,0.623]
[1746850337261,0.24624727,658.23,656.21,0.623]
[1746850337761,0.51116911,658.22,656.21,0.623]
[1746850338061,0.24624727,658.21,656.21,0.623]
[1746850338462,0.24624727,658.2,656.21,0.623]
[1746850338662,0.26492184,658.22,656.21,0.623]
[1746850339163,0.24625994,658.21,656.21,0.623]
[1746850339461,0.24625994,658.2,656.21,0.623]
[1746850339862,0.24625994,658.19,656.21,0.623]
[1746850340258,0.24625994,658.18,656.21,0.623]
[1746850340663,0.24625994,658.17,656.21,0.623]
[1746850340864,0.24625994,658.16,656.21,0.623]
[1746850341065,0.24625994,658.15,656.21,0.623]
[1746850341663,0.51121102,658.15,656.21,0.623]
[1746850341864,1.93745811,657.72,656.21,0.623]
[1746850343164,0.24625994,657.71,656.21,0.623]
[1746850343463,0.24625994,657.7,656.21,0.623]
[1746850343665,0.24625994,657.7,656.22,0.619]
[1746850343965,0.24625994,657.71,656.22,0.619]
[1746850344260,1.93745811,657.2,656.22,0.619]
[1746850344666,0.24625994,657.19,656.22,0.619]
[1746850346767,0.24625994,657.9,656.22,0.619]
[1746850347267,0.24625994,657.89,656.22,0.619]
[1746850347566,0.24625994,657.88,656.22,0.619]
[1746850347967,0.24625994,657.87,656.22,0.619]
[1746850348267,0.24625994,657.86,656.22,0.619]
[1746850348663,0.24625994,657.85,656.22,0.619]
[1746850348968,0.24625994,657.84,656.22,0.619]
[1746850349369,0.24625994,657.83,656.22,0.619]
[1746850349868,1.93745811,657.47,656.22,0.619]
[1746850350468,0.24625994,657.46,656.22,0.619]
[1746850351269,0.24625994,657.45,656.22,0.619]
[1746850351471,1.93745811,657.43,656.22,0.619]
[1746850351668,0.24625994,657.42,656.22,0.619]
[1746850352871,0.265054,657.41,656.22,0.619]
[1746850353373,0.24625994,657.4,656.22,0.619]
[1746850355978,0.24625994,657.39,656.22,0.619]
[1746850356475,0.24625994,657.38,656.22,0.619]
[1746850356877,0.24625994,657.37,656.22,0.619]
[1746850357079,0.24625994,657.36,656.22,0.619]
[1746850358376,0.24625994,657.35,656.22,0.619]
[1746850358877,0.24625994,657.34,656.22,0.619]
[1746850359178,0.24625994,657.33,656.22,0.619]
[1746850359379,1.93745811,656.94,656.22,0.619]
[1746850359977,0.24625994,656.93,656.22,0.619]
[1746850360680,0.24625994,656.92,656.22,0.619]
[1746850361180,0.24625994,656.91,656.22,0.619]
[1746850361881,0.24625994,656.9,656.22,0.619]
[1746850362181,0.24625994,656.89,656.22,0.619]
[1746850362481,0.24625994,657.47,656.22,0.619]
[1746850362684,0.24625994,657.47,653.79,0.95783971]
[1746850362879,0.2651368,656.88,655.29,0.26513983]
[1746850363079,0.24625994,657.46,655.29,0.26513983]
[1746850363276,0.24625994,656.87,655.29,0.26513983]
[1746850363576,0.24625994,656.86,655.29,0.26513983]
[1746850363781,0.24625994,656.85,655.29,0.26513983]
[1746850364180,0.24625994,656.84,655.29,0.26513983]
[1746850364382,0.51165758,656.84,655.29,0.26513983]
[1746850364681,0.26539764,656.84,655.29,0.26513983]
[1746850364976,0.24625994,656.83,655.29,0.26513983]
[1746850365181,0.24625994,656.83,655.29,0.69013983]
[1746850365383,0.24625994,656.83,655.3,0.5906779]
[1746850365583,0.24625994,656.83,655.29,0.69013983]
[1746850365777,0.24625994,656.83,655.3,0.59065955]
[1746850365978,0.24625994,656.83,655.31,1.48399639]
[1746850366183,0.24625994,656.83,655.32,1.48399639]
[1746850366381,0.24625994,656.83,655.33,1.48399639]
[1746850366583,0.24625994,656.83,655.34,1.48399639]
[1746850366783,0.24625994,656.83,655.35,1.48399639]
[1746850366983,0.24625994,656.83,655.29,0.69013983]
[1746850367282,0.24625994,656.83,655.3,1.48455661]
[1746850367481,0.24625994,656.83,655.31,1.48455661]
[1746850367677,0.24625994,656.83,655.32,1.48455661]
[1746850367879,0.24625994,656.83,655.33,1.48455661]
[1746850368083,0.26516912,656.82,655.34,1.48455661]
[1746850368278,0.26516912,656.82,655.3,0.26516912]
[1746850368279,0.24625994,656.81,655.35,1.48455661]
[1746850368479,0.24625994,656.81,655.36,1.48455661]
[1746850368683,0.24625994,656.81,655.37,1.48455661]
[1746850368880,0.24625994,656.81,655.38,1.48455661]
[1746850369084,0.24625994,656.81,655.39,1.48455661]
[1746850369383,0.24625994,656.81,655.4,1.48455661]
[1746850369583,0.24625994,656.81,655.41,0.59079854]
[1746850369780,0.24625994,656.81,655.42,0.59079854]
[1746850369987,0.24625994,656.81,655.43,0.59079854]
[1746850370189,0.24625994,656.81,655.44,0.59079854]
[1746850370382,0.24625994,656.81,655.45,0.59079854]
[1746850370585,0.24625994,656.81,655.46,0.59079854]
[1746850370783,0.24625994,656.81,655.47,0.59079854]
[1746850371083,0.24625994,656.81,655.48,0.59079854]
[1746850371287,0.24625994,656.81,655.49,0.59079854]
[1746850371488,0.24625994,656.81,655.3,0.26516912]
[1746850371689,0.24625994,656.81,655.31,0.59170513]
[1746850371883,0.24625994,656.81,655.32,0.59170513]
[1746850372087,0.24625994,656.81,655.33,0.59170513]
[1746850372286,0.24625994,656.81,655.34,0.59170513]
[1746850372484,0.24625994,656.81,655.35,0.59170513]
[1746850372685,0.24625994,656.81,655.36,0.59170513]
[1746850372990,0.24625994,656.81,655.37,1.4874972]
[1746850373192,0.24625994,656.81,655.38,1.48749705]
[1746850373491,0.24625994,656.81,655.39,1.48749705]
[1746850373790,0.24625994,656.81,655.4,1.48749705]
[1746850373991,0.24625994,656.81,655.41,1.48749705]
[1746850374290,0.24625994,656.81,655.42,1.48749705]
[1746850374490,0.24625994,656.81,655.43,1.48749705]
[1746850374695,0.24625994,656.81,655.44,1.48749705]
[1746850374990,0.24625994,656.81,655.45,1.48749705]
[1746850375190,0.24625994,656.81,655.46,1.48774548]
[1746850375390,0.24625994,656.81,655.3,0.26516912]
[1746850375391,0.24625994,656.81,655.47,1.48774548]
[1746850375691,0.24625994,656.81,655.48,1.48774548]
[1746850375891,0.24625994,656.81,655.49,0.59197453]
[1746850376093,0.24625994,656.81,655.5,1.48797252]
[1746850376291,0.24625994,656.81,655.51,1.48797252]
[1746850376492,0.24625994,656.81,655.52,1.48797252]
[1746850376692,0.24625994,656.81,655.53,1.48797252]
[1746850376893,0.26511357,656.8,655.54,1.48797252]
[1746850377088,0.26511357,656.8,655.55,0.59197453]
[1746850377289,0.24625994,656.79,655.56,0.59197453]
[1746850377487,0.24625994,656.79,655.57,0.59197453]
[1746850377692,0.24625994,656.79,655.58,0.59194182]
[1746850377890,0.24625994,656.79,655.59,0.59194182]
[1746850378094,0.24625994,656.79,655.39,0.26511357]
[1746850378290,0.24625994,656.79,655.4,0.59200373]
[1746850378494,0.24625994,656.79,655.41,1.48811908]
[1746850378694,0.24625994,656.79,655.42,0.59200373]
[1746850378889,0.24625994,656.79,655.43,0.59200373]
[1746850379094,0.24625994,656.79,655.44,0.59200373]
[1746850379393,0.24625994,656.79,655.45,0.59200373]
[1746850379595,0.24625994,656.79,655.46,0.59200373]
[1746850379797,0.2651368,656.78,655.47,0.59200373]
[1746850380100,0.24625994,656.77,655.48,0.59200373]
[1746850380395,0.24625994,656.77,655.49,0.59200373]
[1746850380597,0.24625994,656.77,655.5,0.59200373]
[1746850380793,0.24625994,656.77,655.51,0.59200373]
[1746850380993,0.24625994,656.77,655.52,0.59197144]
[1746850381195,0.24625994,656.77,655.53,0.59197144]
[1746850381396,0.24625994,656.77,655.54,0.59197144]
[1746850381595,0.24625994,656.77,655.55,0.59197144]
[1746850381897,0.24625994,656.77,655.56,0.59197144]
[1746850382196,0.24625994,656.77,655.57,0.59197144]
[1746850382398,0.24625994,656.77,655.58,0.59197144]
[1746850382592,0.24625994,656.77,655.59,0.59197144]
[1746850382794,0.26511054,656.76,655.47,0.26511054]
[1746850382994,0.24625994,656.75,655.48,0.59195993]
[1746850383199,0.24625994,656.75,655.49,0.59195993]
[1746850383396,0.24625994,656.75,655.5,0.59195993]
[1746850383599,0.24625994,656.75,655.51,0.59195993]
[1746850383802,0.24625994,656.75,655.52,0.59195993]
[1746850384096,0.24625994,656.75,655.47,0.26511054]
[1746850384301,0.24625994,656.75,655.48,0.59194372]
[1746850384500,0.24625994,656.75,655.49,0.59194372]
[1746850384802,0.24625994,656.75,655.5,1.48786275]
[1746850385004,0.24625994,656.75,655.51,1.48786275]
[1746850385202,0.24625994,656.75,655.52,1.48786275]
[1746850385406,0.26513074,656.74,655.53,0.59194372]
[1746850385602,0.26513074,656.74,655.54,0.59194372]
[1746850385906,0.24625994,656.73,655.55,0.59194372]
[1746850386202,0.24625994,656.73,655.56,0.59194372]
[1746850386410,0.24625994,656.73,655.57,0.59194372]
[1746850386602,0.24625994,656.73,655.58,0.59194372]
[1746850386797,0.24625994,656.73,655.59,0.59194372]
[1746850387002,0.24625994,656.73,655.6,0.59194372]
[1746850387201,0.24625994,656.73,655.61,0.59194372]
[1746850387403,0.24625994,656.73,655.62,0.59194372]
[1746850387605,0.24625994,656.73,655.56,0.427]
[1746850387805,0.24625994,656.73,655.57,0.59189673]
[1746850388007,0.24625994,656.73,655.58,0.59189673]
[1746850388200,0.24625994,656.73,655.59,0.59189673]
[1746850388404,0.24625994,656.73,655.6,0.59189673]
[1746850388603,0.24625994,656.73,655.61,0.59189673]
[1746850388800,0.30454843,656.71,655.62,0.59189673]
[1746850389004,0.30454843,656.71,655.63,0.59189673]
[1746850389204,0.24625994,656.7,655.64,0.59189673]
[1746850389405,0.24625994,656.7,655.56,0.427]
[1746850389605,0.24625994,656.7,655.57,0.59181337]
[1746850389805,0.24625994,656.7,655.56,0.427]
[1746850389806,0.24625994,656.7,655.58,0.59181337]
[1746850390105,0.24625994,656.7,655.59,0.59181337]
[1746850390300,0.24625994,656.7,655.6,0.59181337]
[1746850390509,0.24625994,656.7,655.61,0.59181337]
[1746850390702,0.24625994,656.7,655.62,0.59181337]
[1746850391002,0.24625994,656.7,655.63,0.59181337]
[1746850391201,0.24625994,656.7,655.64,0.59182659]
[1746850391405,0.24625994,656.7,655.65,0.59182659]
[1746850391605,0.24625994,656.7,655.66,0.59182659]
[1746850391803,0.30456234,656.68,655.67,0.59182659]
[1746850392008,0.30456234,656.68,655.68,0.59182659]
[1746850392208,0.24625994,656.67,655.69,0.59182659]
[1746850392401,0.24625994,656.67,655.7,0.59182659]
[1746850392605,0.24625994,656.67,655.71,0.59182659]
[1746850392905,0.24625994,656.67,655.72,0.59182659]
[1746850393101,0.24625994,656.67,655.73,0.59185815]
[1746850393304,0.24625994,656.67,655.74,0.59185815]
[1746850393501,0.24625994,656.67,655.75,0.59185861]
[1746850393703,0.24625994,656.67,655.76,0.59185861]
[1746850393908,0.24625994,656.67,655.73,0.529]
[1746850394102,0.24625994,656.67,655.74,0.59185802]
[1746850394303,0.24625994,656.67,655.73,0.529]
[1746850397703,0.2652894,656.66,655.73,0.529]
[1746850398308,0.24625994,656.65,655.73,0.529]
[1746850400810,0.26526513,656.64,655.73,0.529]
[1746850401207,0.30459017,656.62,655.73,0.529]
[1746850401510,0.24625994,656.61,655.73,0.529]
[1746850402512,0.30460409,656.59,655.73,0.529]
[1746850403111,0.24625994,656.58,655.73,0.529]
[1746850403311,0.304618,656.56,655.73,0.529]
[1746850403913,0.24625994,656.55,655.73,0.529]
[1746850404212,0.30463192,656.53,655.73,0.529]
[1746850404514,0.24625994,656.52,655.73,0.529]
[1746850404811,0.3046412,656.51,655.73,0.529]
[1746850405113,0.24625994,656.5,655.73,0.529]
[1746850405313,0.30465048,656.49,655.73,0.529]
[1746850405914,0.24625994,656.48,655.73,0.529]
[1746850406310,0.30465977,656.47,655.73,0.529]
[1746850406914,0.24625994,656.46,655.73,0.529]
[1746850407209,0.30466905,656.45,655.73,0.529]
[1746850407714,0.24625994,656.44,655.73,0.529]
[1746850407915,0.30467833,656.43,655.73,0.529]
[1746850408716,0.24625994,656.42,655.73,0.529]
[1746850408917,0.30468761,656.41,655.73,0.529]
[1746850409612,0.24625994,656.4,655.73,0.529]
[1746850409817,0.3046969,656.39,655.73,0.529]
[1746850410613,0.24625994,656.38,655.73,0.529]
[1746850410812,0.3046969,656.39,655.73,0.529]
[1746850414715,0.24599221,656.38,655.73,0.529]
[1746850415118,0.30470618,656.37,655.73,0.529]
[1746850415322,0.24599221,656.36,655.73,0.529]
[1746850415822,0.51129273,656.36,655.73,0.529]
[1746850416522,0.24599221,656.35,655.73,0.529]
[1746850417723,0.30472011,656.34,655.73,0.529]
[1746850418221,0.24599221,656.33,655.73,0.529]
[1746850418417,0.3047294,656.32,655.73,0.529]
[1746850419322,0.24599221,656.31,655.73,0.529]
[1746850420023,0.30473868,656.3,655.73,0.529]
[1746850420922,0.24602653,656.29,655.73,0.529]
[1746850423024,0.30474797,656.28,655.73,0.529]
[1746850423620,0.24602653,656.27,655.73,0.529]
[1746850424126,0.30474797,656.28,655.73,0.529]
[1746850424828,0.24601959,656.27,655.73,0.529]
[1746850425023,0.30475726,656.26,655.73,0.529]
[1746850425530,0.24601959,656.25,655.73,0.529]
[1746850426629,0.30475726,656.26,655.73,0.529]
[1746850429629,0.30475726,656.26,655.74,0.59299377]
[1746850429834,0.30475726,656.26,655.75,0.5929753]
[1746850430129,0.30475726,656.26,655.76,0.5929753]
[1746850430436,0.30475726,656.26,655.77,0.5929753]
[1746850430627,0.30475726,656.26,655.73,0.529]
[1746850430628,0.30475726,656.26,655.78,0.5929753]
[1746850430828,0.30475726,656.26,655.79,0.5929753]
[1746850431031,0.30475726,656.26,655.8,0.5929753]
[1746850431233,0.30475726,656.26,655.81,0.5929753]
[1746850431434,0.30475726,656.26,655.73,0.529]
[1746850431635,0.30475726,656.26,655.74,0.59284555]
[1746850431835,0.30475726,656.26,655.75,0.59284555]
[1746850432034,0.30475726,656.26,655.76,0.59284555]
[1746850432228,0.30475726,656.26,655.77,0.59284555]
[1746850432431,0.30475726,656.26,655.78,0.59284555]
[1746850432733,0.30475726,656.26,655.79,0.59284555]
[1746850432930,0.30475726,656.26,655.8,0.59284555]
[1746850433129,0.30475726,656.26,655.81,0.59284555]
[1746850433331,0.30475726,656.26,655.82,0.59274362]
[1746850433530,0.30475726,656.26,655.83,0.59274362]
[1746850433730,0.30475726,656.26,655.73,0.529]
[1746850433930,0.30475726,656.26,655.74,0.59267897]
[1746850434131,0.30475726,656.26,655.75,0.59267897]
[1746850434336,0.30475726,656.26,655.76,0.59267897]
[1746850434631,0.30475726,656.26,655.77,0.59267897]
[1746850434837,0.30475726,656.26,655.78,0.59267897]
[1746850435034,0.30475726,656.26,655.79,0.59267897]
[1746850435230,0.30475726,656.26,655.8,0.59267897]
[1746850435430,0.30475726,656.26,655.81,0.59267897]
[1746850435634,0.30475726,656.26,655.82,0.59267897]
[1746850435831,0.30475726,656.26,655.83,0.59267897]
[1746850436035,0.30475726,656.26,655.84,0.59267897]
[1746850436236,0.30475726,656.26,655.85,0.59267897]
[1746850436433,0.30475726,656.26,655.86,0.59267897]
[1746850436736,0.30475726,656.26,655.87,0.59267897]
[1746850436933,0.30475726,656.26,655.87,0.462]
[1746850440643,0.30475726,656.26,655.88,0.6]
[1746850444749,0.30475726,656.26,655.89,0.5918311]
[1746850445043,0.30475726,656.26,655.9,0.5918311]
[1746850445243,0.30475726,656.26,655.88,0.6]
[1746850445445,0.30475726,656.26,655.89,0.59182016]
[1746850445644,0.30475726,656.26,655.9,0.59182016]
[1746850445846,0.30475726,656.26,655.91,0.59182016]
[1746850446044,0.30475726,656.26,655.88,0.6]
[1746850446247,0.30475726,656.26,655.89,0.59172318]
[1746850446549,0.30475726,656.26,655.9,0.59172318]
[1746850446749,0.30475726,656.26,655.91,0.59172318]
[1746850446951,0.30475726,656.26,655.88,0.6]
[1746850447150,0.30475726,656.26,655.89,0.5916313]
[1746850447350,0.30475726,656.26,655.9,0.5916313]
[1746850447552,0.26497933,656.86,655.91,0.59154504]
[1746850447850,0.26497933,656.86,655.92,0.59154504]
[1746850448050,0.24615439,656.85,655.88,0.6]
[1746850448245,0.24615439,656.85,655.89,0.59153424]
[1746850448552,0.30449279,656.83,655.9,0.59153424]